lending/lending_fUSD_20251021
["ID","MTS","AMOUNT","RATE_DAILY","PERIOD"]
[391936488,1761009045646,-164.22,0.00020786,2]
[391936489,1761009045655,-158.54,0.0002095,2]
[391936490,1761009045665,-9399.61,0.00020951,2]
[391936491,1761009045675,-500.0,0.00020999,2]
[391936492,1761009045685,-13784.28214667,0.00021,2]
[391936493,1761009045936,-3929.91022672,0.00021,2]
[391936494,1761009045967,-2227.40502865,0.00021,2]
[391936497,1761009046586,-151.0,0.00017675,2]
[391936498,1761009046595,-228.66690578,0.00019445,2]
[391936499,1761009046604,-119.47006434,0.00021,2]
[391936500,1761009046615,-310.37500193,0.00021,2]
[391936501,1761009046626,-3234.73159282,0.00021,2]
[391936502,1761009046642,-3642.74979998,0.00021,2]
[391936520,1761009128436,500.0,0.00029499,120]
[391936521,1761009128694,500.0,0.00030129,120]
[391936542,1761009207268,-388.798108,0.00014686,2]
[391936543,1761009207289,-182.62342884,0.0001476,2]
[391936544,1761009207312,-1598.42559,0.0001485,2]
[391936545,1761009207332,-1598.4256,0.0001486,2]
[391936546,1761009207353,-1481.72727316,0.0001487,2]
[391936548,1761009304809,204.0,0.00020829,120]
[391936549,1761009382964,500.0,0.00027999,120]
[391936550,1761009383222,500.0,0.00029499,120]
[391936593,1761009598842,285.68182314,0.00027999,120]
[391936596,1761009620722,543.26,0.00027999,120]
[391936599,1761009620999,543.26,0.00029499,120]
[391936610,1761009714109,-157.85527975,0.00014502,2]
[391936619,1761009936551,3914.86,9e-05,2]
[391936620,1761009936577,3626.14963588,9e-05,2]
[391936622,1761009962369,7908.48899128,8e-05,2]
[391936623,1761009963033,-275.87835018,0.00013699,2]
[391936627,1761010035694,205.0,9.8e-05,2]
[391936628,1761010039683,257.16132232,0.000101,2]
[391936631,1761010125675,161.32692114,0.00012,2]
[391936652,1761010232266,-40.39164982,0.00013699,2]
[391936653,1761010232276,-167.05310542,0.00014302,2]
[391936654,1761010232288,-182.62342884,0.00014475,2]
[391936655,1761010232298,-300.0,0.00014529,2]
[391936656,1761010232307,-1200.0,0.00014529,2]
[391936657,1761010232317,-9675.95137745,0.0001453,2]
[391936658,1761010232328,-5897.10102632,0.0001453,2]
[391936659,1761010232340,-7525.06759623,0.0001453,2]
[391936660,1761010232350,-448.64,0.00014563,2]
[391936661,1761010232359,-169.72,0.00014728,2]
[391936662,1761010232369,-3507.62,0.00014737,2]
[391936663,1761010232379,-7250.8443,0.000149,2]
[391936664,1761010232389,-500.0,0.00014973,2]
[391936665,1761010232398,-154.046122,0.00014973,2]
[391936666,1761010232407,-501.53761575,0.00014973,2]
[391936667,1761010232416,-502.55588463,0.00014973,2]
[391936668,1761010232426,-504.39647037,0.00014973,2]
[391936669,1761010232435,-504.22463996,0.00014973,2]
[391936671,1761010232445,-150.0,0.0001499,2]
[391936673,1761010232454,-438.44814067,0.0001499,2]
[391936675,1761010232468,-200.0,0.00014991,2]
[391936677,1761010232478,-337.32838914,0.00014991,2]
[391936679,1761010232487,-275.22888194,0.00014991,2]
[391936681,1761010232498,-195.94762041,0.00014991,2]
[391936684,1761010232510,-151.0,0.00014991,2]
[391936686,1761010232520,-151.0,0.00014991,2]
[391936688,1761010232530,-151.0,0.00014991,2]
[391936690,1761010232543,-151.0,0.00014991,2]
[391936692,1761010232552,-151.0,0.00014991,2]
[391936693,1761010232562,-151.0,0.00014991,2]
[391936695,1761010232571,-151.0,0.00014991,2]
[391936696,1761010232580,-151.0,0.00014991,2]
[391936697,1761010232591,-151.0,0.00014991,2]
[391936698,1761010232600,-295.58843971,0.00014991,2]
[391936699,1761010232610,-500.0,0.00014999,2]
[391936700,1761010232619,-500.0,0.00014999,2]
[391936701,1761010232628,-500.0,0.00014999,2]
[391936702,1761010232637,-543.26,0.00014999,2]
[391936703,1761010232648,-543.26,0.00014999,2]
[391936704,1761010232657,-500.0,0.00014999,2]
[391936705,1761010232667,-426.76,0.00014999,2]
[391936706,1761010232676,-500.0,0.00014999,2]
[391936707,1761010232685,-227.25601572,0.00014999,2]
[391936708,1761010232695,-581.91550005,0.00014999,2]
[391936709,1761010232705,-280.52592582,0.00014999,2]
[391936710,1761010232715,-500.0,0.00014999,2]
[391936711,1761010232726,-500.0,0.00014999,2]
[391936712,1761010232735,-160.0,0.00015,2]
[391936713,1761010232746,-403249.91877757,0.00015,2]
[391936714,1761010233110,-69633.28276538,0.00015,2]
[391936715,1761010233122,-7513.912746,0.00015,2]
[391936729,1761010237983,-300.6,0.00014402,2]
[391936731,1761010237994,-3718.652436,0.00014402,2]
[391936733,1761010238005,-501.83073958,0.00014998,2]
[391936735,1761010238015,-500.0,0.00014998,2]
[391936737,1761010238024,-500.0,0.00014998,2]
[391936739,1761010238034,-500.0,0.00014998,2]
[391936741,1761010238044,-184.62313022,0.00014998,2]
[391936743,1761010238054,-500.0,0.00014998,2]
[391936745,1761010238063,-256.44056787,0.00014998,2]
[391936750,1761010238096,-243.55943213,0.00014998,2]
[391936752,1761010238105,-500.0,0.00014998,2]
[391936754,1761010238114,-366.72388472,0.00014998,2]
[391936756,1761010238125,-133.27611528,0.00014998,2]
[391936758,1761010238134,-220.82319538,0.00014998,2]
[391936760,1761010238144,-708.93855244,0.00015,2]
[391936762,1761010238155,-4629.6181351,0.00015,2]
[391936771,1761010238209,-2233.77339429,0.00015,2]
[391936978,1761010240100,-20364.17609244,0.00015,2]
[391936980,1761010240111,-452.20582707,0.00015,2]
[391936982,1761010240122,-374424.69859927,0.00015,2]
[391936984,1761010240133,-64866.25152094,0.00015,2]
[391936993,1761010240208,-2762.8431628,0.00015,2]
[391937177,1761010243399,-1412.26788628,0.00015,2]
[391937178,1761010243412,-3660.07013195,0.00015,2]
[391937179,1761010243424,-1662.7766331,0.00015,2]
[391937180,1761010243435,-818.09811114,0.00015,2]
[391937184,1761010246303,-250.34225286,0.00015,2]
[391937185,1761010246387,-996.95612939,0.00015,2]
[391937186,1761010246398,-2531.93822173,0.00015,2]
[391937187,1761010246511,-2000.0,0.00015,2]
[391937204,1761010305750,1018.94,0.00030137,120]
[391937205,1761010377854,190.0,0.00030136,120]
[391937209,1761010646595,-175.45187846,0.00013699,2]
[391937211,1761010689292,-232.06812154,0.00013699,2]
[391937212,1761010689317,-103.3479825,0.00013892,2]
[391937213,1761010793690,-181.05215253,0.00013876,2]
[391937214,1761010824195,500.0,0.00029499,120]
[391937215,1761010824461,500.0,0.00029999,120]
[391937216,1761010825663,438.77527298,0.00030136,120]
[391937217,1761010828512,500.0,0.00030136,120]
[391937218,1761010829219,500.0,0.00030136,120]
[391937219,1761010829880,500.0,0.00030136,120]
[391937220,1761010830899,500.0,0.00030136,120]
[391937221,1761010853630,-297.04893417,0.00013792,2]
[391937228,1761010942023,5000.0,0.0003013,120]
[391937229,1761011048745,-202.95106583,0.00013792,2]
[391937230,1761011048772,-171.83307594,0.00013813,2]
[391937231,1761011051997,-244.11976489,0.00013813,2]
[391937232,1761011056006,-333.36843543,0.00013813,2]
[391937233,1761011059777,-251.31422881,0.00013813,2]
[391937234,1761011062439,-166.79321567,0.00013813,2]
[391937235,1761011078628,-193.77579329,0.00013813,2]
[391937236,1761011080826,-173.65493448,0.00013813,2]
[391937237,1761011082366,-241.75670472,0.00013813,2]
[391937238,1761011123786,-150.0,0.00013488,2]
[391937239,1761011123809,-100.0,0.00013488,2]
[391937240,1761011130031,-50.0,0.00013488,2]
[391937241,1761011130053,-150.0,0.00013488,2]
[391937242,1761011130079,-114.72809752,0.00013488,2]
[391937243,1761011133430,-35.27190248,0.00013488,2]
[391937244,1761011133452,-150.0,0.00013488,2]
[391937245,1761011133474,-127.31602431,0.00013488,2]
[391937246,1761011137486,-24.79029443,0.00013488,2]
[391937247,1761011137508,-153.4813847,0.00013488,2]
[391937248,1761011137528,-150.0,0.00013488,2]
[391937249,1761011137549,-119.52815337,0.00013488,2]
[391937250,1761011140843,-30.47184663,0.00013488,2]
[391937251,1761011140865,-150.0,0.00013488,2]
[391937252,1761011140887,-30.43581824,0.00013737,2]
[391937253,1761011143333,-119.56418176,0.00013737,2]
[391937254,1761011143356,-83.96182634,0.00013812,2]
[391937255,1761011144993,-208.49065822,0.00013812,2]
[391937256,1761011148956,-166.52519143,0.00013812,2]
[391937257,1761011150484,-211.44554323,0.00013812,2]
[391937258,1761011152811,-132.57678078,0.00013812,2]
[391937259,1761011152834,-6.0770661,0.00013813,2]
[391937260,1761011152868,-64.19368812,0.00013834,2]
[391937262,1761011198630,-315.64225676,0.00013692,2]
[391937263,1761011200784,-184.35774324,0.00013692,2]
[391937264,1761011200805,-2.91415924,0.00013862,2]
[391937276,1761011432097,-147.08584076,0.00013862,2]
[391937277,1761011432109,-184.44585459,0.00013887,2]
[391937278,1761011432119,-33.93571658,0.00013969,3]
[391937279,1761011432132,-632.06428342,0.00013969,3]
[391937280,1761011432141,-39.63669934,0.00013987,2]
[391937281,1761011432153,-110.36330066,0.00013987,2]
[391937282,1761011432163,-150.0,0.00013987,2]
[391937283,1761011432172,-166.66,0.00014085,2]
[391937284,1761011432182,-332.74717287,0.00014199,2]
[391937285,1761011432193,-667.25282713,0.00014199,2]
[391937286,1761011432203,-700.48824005,0.00014201,2]
[391937287,1761011432216,-506.58,0.00014201,2]
[391937288,1761011432230,-1934.76175995,0.00014201,2]
[391937289,1761011432239,-345.61648774,0.00014235,2]
[391937290,1761011432270,-854.38351226,0.00014235,2]
[391937291,1761011432279,-300.0,0.00014236,2]
[391937292,1761011432289,-300.0,0.00014236,2]
[391937293,1761011432299,-300.0,0.00014236,2]
[391937294,1761011432309,-300.0,0.00014236,2]
[391937295,1761011432319,-150.0,0.00014237,2]
[391937296,1761011432328,-150.0,0.00014237,2]
[391937297,1761011432339,-150.0,0.00014237,2]
[391937298,1761011432348,-150.0,0.00014237,2]
[391937299,1761011432358,-150.0,0.00014237,2]
[391937300,1761011432367,-150.0,0.00014237,2]
[391937301,1761011432381,-1200.0,0.00014378,2]
[391937302,1761011432392,-1834.11,0.00014379,2]
[391937303,1761011432402,-166.66,0.00014382,2]
[391937304,1761011432412,-150.0,0.00014487,2]
[391937305,1761011432422,-150.0,0.00014487,2]
[391937307,1761011432431,-150.0,0.00014612,2]
[391937309,1761011432440,-166.66,0.00014679,2]
[391937311,1761011432450,-596.443032,0.00014703,2]
[391937313,1761011432459,-150.0,0.00014737,2]
[391937315,1761011432468,-150.0,0.00014899,2]
[391937317,1761011432478,-496.762,0.000149,2]
[391937319,1761011432488,-449.93860042,0.000149,2]
[391937321,1761011432497,-6160.79283497,0.000149,2]
[391937343,1761011432661,-185.2187741,0.000149,2]
[391937345,1761011432671,-194.01117957,0.000149,2]
[391937347,1761011432681,-193.86,0.00014943,2]
[391937349,1761011432690,-500.0,0.00014973,2]
[391937351,1761011432699,-503.38435933,0.00014973,2]
[391937353,1761011432709,-501.14934939,0.00014973,2]
[391937355,1761011432718,-500.0,0.00014973,2]
[391937357,1761011432727,-500.0,0.00014973,2]
[391937359,1761011432736,-501.31838142,0.00014973,2]
[391937361,1761011432746,-501.99909589,0.00014973,2]
[391937363,1761011432756,-166.66,0.00014975,2]
[391937365,1761011432765,-156.86931795,0.00014986,2]
[391937367,1761011432775,-160.37742408,0.00014986,2]
[391937369,1761011432784,-156.12804031,0.00014986,2]
[391937370,1761011432793,-154.57910806,0.00014986,2]
[391937371,1761011432802,-153.27789942,0.00014986,2]
[391937372,1761011432811,-154.01615464,0.00014986,2]
[391937373,1761011432821,-162.19021309,0.00014986,2]
[391937374,1761011432831,-156.88649563,0.00014986,2]
[391937375,1761011432841,-202.4643978,0.0001499,2]
[391937376,1761011432850,-345.03957717,0.0001499,2]
[391937377,1761011432859,-151.0,0.00014997,2]
[391937378,1761011432868,-1017.6907077,0.00014998,2]
[391937379,1761011432877,-411.938,0.00014998,2]
[391937380,1761011432887,-170.94140278,0.00014998,2]
[391937381,1761011432896,-273.03267928,0.00014999,2]
[391937382,1761011432905,-411.7374563,0.00014999,2]
[391937383,1761011432915,-500.0,0.00014999,2]
[391937384,1761011432927,-510.45688976,0.00014999,2]
[391937385,1761011432936,-500.0,0.00014999,2]
[391937386,1761011432945,-500.0,0.00014999,2]
[391937387,1761011432954,-500.0,0.00014999,2]
[391937388,1761011432963,-500.0,0.00014999,2]
[391937389,1761011432972,-500.0,0.00014999,2]
[391937390,1761011432983,-500.0,0.00014999,2]
[391937391,1761011432993,-500.0,0.00014999,2]
[391937392,1761011433002,-500.0,0.00014999,2]
[391937393,1761011433012,-500.0,0.00014999,2]
[391937394,1761011433022,-500.0,0.00014999,2]
[391937395,1761011433031,-150.0,0.00014999,2]
[391937396,1761011433040,-229.47874387,0.00014999,2]
[391937397,1761011433049,-158.26966024,0.00014999,2]
[391937398,1761011433058,-152.68502341,0.00014999,2]
[391937399,1761011433068,-538.70398428,0.00014999,2]
[391937400,1761011433078,-500.0,0.00014999,2]
[391937401,1761011433087,-500.0,0.00014999,2]
[391937402,1761011433096,-500.0,0.00014999,2]
[391937403,1761011433105,-500.0,0.00014999,2]
[391937404,1761011433115,-500.0,0.00014999,2]
[391937405,1761011433124,-220.36365755,0.00014999,2]
[391937406,1761011433133,-500.0,0.00014999,2]
[391937407,1761011433143,-500.0,0.00014999,2]
[391937408,1761011433152,-516.00192321,0.00014999,2]
[391937409,1761011433161,-500.0,0.00014999,2]
[391937410,1761011433171,-500.0,0.00014999,2]
[391937411,1761011433180,-500.0,0.00014999,2]
[391937412,1761011433190,-420.73707516,0.00014999,2]
[391937413,1761011433199,-670.94797044,0.00014999,2]
[391937414,1761011433209,-225523.4385107,0.00015,2]
[391937415,1761011433223,-8352.69195696,0.00015,2]
[391937416,1761011433235,-1618.9,0.00015,2]
[391937417,1761011433247,-840.82494719,0.00015,2]
[391937418,1761011433258,-295561.90832933,0.00015,2]
[391937419,1761011433269,-2150.13,0.00015,2]
[391937420,1761011433320,-196581.71730964,0.00015,2]
[391937421,1761011433331,-100629.63613093,0.00015,2]
[391937422,1761011433342,-263885.71891565,0.00015,2]
[391937423,1761011433354,-62053.79902575,0.00015,2]
[391937424,1761011433365,-250.0,0.00015,2]
[391937425,1761011433376,-10633.37959752,0.00015,2]
[391937426,1761011433389,-344.81,0.00015,2]
[391937427,1761011433404,-1375.58837666,0.00015,2]
[391937428,1761011433414,-2327.98799914,0.00015,2]
[391937429,1761011433425,-1563.28726667,0.00015,2]
[391937430,1761011433436,-1106.89613506,0.00015,2]
[391937431,1761011433448,-1603.77847889,0.00015,2]
[391937432,1761011433459,-10646.33046805,0.00015,2]
[391937433,1761011433469,-1000.13225756,0.00015,2]
[391937442,1761011438010,-8429.93775452,0.00015,2]
[391937447,1761011438048,-2536.8412432,0.00015,2]
[391937448,1761011438208,-2035.73992339,0.00015,2]
[391937449,1761011438220,-1374.5491995,0.00015,2]
[391937450,1761011438263,-471.87366345,0.00015,2]
[391937576,1761011440171,-53794.87857693,0.00015,2]
[391937577,1761011440182,-721.39988999,0.00015,2]
[391937578,1761011440231,-4045.39821024,0.00015,2]
[391937579,1761011440645,-1.6e-07,0.00015,2]
[391937580,1761011440657,-1115.90003394,0.00015,2]
[391937581,1761011440709,-3645.5959239,0.00015,2]
[391937582,1761011441108,-1445.52786979,0.00015,2]
[391937583,1761011441121,-162855.54689874,0.00015,2]
[391937584,1761011441132,-784.68412485,0.00015,2]
[391937588,1761011443238,-1187.59440292,0.00015,2]
[391937589,1761011443250,-1586.90102568,0.00015,2]
[391937590,1761011443274,-560.47152291,0.00015,2]
[391937591,1761011443285,-263.58446541,0.00015,2]
[391937592,1761011443297,-636.41553459,0.00015,2]
[391937593,1761011443382,-24721.28672805,0.00015,2]
[391937594,1761011443436,-931.09196623,0.00015,2]
[391937595,1761011443542,-10053.27936094,0.00015,2]
[391937596,1761011443555,-2759.14964245,0.00015,2]
[391937597,1761011443566,-336.71692755,0.00015,2]
[391937598,1761011443578,-6855.90067227,0.00015,2]
[391937602,1761011446492,-257.22675541,0.00015,2]
[391937604,1761011606860,357.97888477,0.000301,120]
[391937605,1761011691227,155.2104598,0.0003013,120]
[391937608,1761012349555,500.0,0.00027999,120]
[391937609,1761012349821,500.0,0.00029499,120]
[391937610,1761012350060,500.0,0.00029999,120]
[391937611,1761012593212,500.0,0.00027999,120]
[391937612,1761012593824,500.0,0.00029499,120]
[391937613,1761012594078,500.0,0.00029999,120]
[391937615,1761012632261,-250.0,0.00014388,7]
[391937616,1761012632271,-150.0,0.00014427,2]
[391937617,1761012632281,-622.78250606,0.00014499,2]
[391937618,1761012632294,-551.97586801,0.00014499,2]
[391937619,1761012632327,-683.07162593,0.00014499,2]
[391937620,1761012632337,-418.37,0.0001457,2]
[391937621,1761012632347,-2096.82,0.00014615,2]
[391937622,1761012632357,-890.80267002,0.00014684,2]
[391937623,1761012632367,-316.05907188,0.0001474,2]
[391937624,1761012632377,-642.05839353,0.000148,2]
[391937625,1761012632387,-214.42491232,0.0001485,2]
[391937626,1761012632399,-2722.17974768,0.0001485,2]
[391937627,1761012632409,-300.0,0.00014896,2]
[391937628,1761012632418,-1200.0,0.00014896,2]
[391937629,1761012632428,-150.0,0.00014899,2]
[391937630,1761012632438,-300.0,0.00014899,2]
[391937631,1761012632447,-300.0,0.00014899,2]
[391937632,1761012632457,-162.49073044,0.000149,2]
[391937633,1761012632469,-422.42829525,0.000149,2]
[391937634,1761012632479,-167.23582269,0.000149,2]
[391937635,1761012632489,-541.42107982,0.000149,2]
[391937636,1761012632499,-376.88923678,0.00014973,2]
[391937637,1761012632509,-517.38886568,0.00014973,2]
[391937638,1761012632519,-400.4583929,0.00014973,2]
[391937639,1761012632529,-641.73489107,0.00014973,2]
[391937640,1761012632538,-500.0,0.00014973,2]
[391937641,1761012632547,-197.20383623,0.00014973,2]
[391937642,1761012632559,-302.79616377,0.00014973,2]
[391937643,1761012632569,-152.43601304,0.00014973,2]
[391937644,1761012632580,-351.89556526,0.00014973,2]
[391937645,1761012632590,-157.01835604,0.00014973,2]
[391937646,1761012632599,-504.73630514,0.00014973,2]
[391937647,1761012632609,-224.33670385,0.00014973,2]
[391937648,1761012632619,-500.54485794,0.00014973,2]
[391937649,1761012632629,-163.7833956,0.00014973,2]
[391937650,1761012632639,-500.0,0.00014973,2]
[391937651,1761012632649,-500.0,0.00014973,2]
[391937652,1761012632659,-409.9878238,0.00014973,2]
[391937653,1761012632668,-243.12,0.00014973,2]
[391937654,1761012632678,-343.45481899,0.00014991,2]
[391937655,1761012632687,-78.0793476,0.00014991,2]
[391937656,1761012632698,-72.9206524,0.00014991,2]
[391937657,1761012632711,-151.0,0.00014991,2]
[391937658,1761012632721,-151.0,0.00014991,2]
[391937659,1761012632731,-277.18933947,0.00014991,2]
[391937660,1761012632742,-174.96341234,0.00014991,2]
[391937661,1761012632754,-329.55,0.00014997,2]
[391937662,1761012632762,-151.0,0.00014997,2]
[391937664,1761012632772,-1004.5222,0.00014999,2]
[391937666,1761012632783,-189.09475124,0.00014999,2]
[391937668,1761012632792,-500.0,0.00014999,2]
[391937670,1761012632801,-500.0,0.00014999,2]
[391937672,1761012632810,-87.29569845,0.00014999,2]
[391937674,1761012632824,-412.70430155,0.00014999,2]
[391937675,1761012632833,-500.0,0.00014999,2]
[391937676,1761012632842,-500.0,0.00014999,2]
[391937677,1761012632851,-379.49544715,0.00014999,2]
[391937678,1761012632860,-500.0,0.00014999,2]
[391937679,1761012632869,-223.63878531,0.00014999,2]
[391937680,1761012632882,-276.36121469,0.00014999,2]
[391937681,1761012632891,-500.0,0.00014999,2]
[391937682,1761012632900,-500.0,0.00014999,2]
[391937683,1761012632911,-500.0,0.00014999,2]
[391937684,1761012632920,-500.0,0.00014999,2]
[391937685,1761012632929,-406.51050485,0.00014999,2]
[391937686,1761012632940,-93.48949515,0.00014999,2]
[391937687,1761012632949,-230.78378303,0.00014999,2]
[391937688,1761012632966,-253.75974854,0.00014999,2]
[391937689,1761012632977,-15.45646843,0.00014999,2]
[391937690,1761012632987,-510.37202283,0.00014999,2]
[391937691,1761012632997,-500.0,0.00014999,2]
[391937692,1761012633007,-500.0,0.00014999,2]
[391937693,1761012633016,-500.0,0.00014999,2]
[391937694,1761012633026,-500.0,0.00014999,2]
[391937695,1761012633036,-213.41523057,0.00014999,2]
[391937696,1761012633046,-551781.62505115,0.00015,2]
[391937697,1761012633058,-27876.09061103,0.00015,2]
[391937698,1761012633091,-6506.47020505,0.00015,2]
[391937699,1761012633102,-1647.9,0.00015,2]
[391937700,1761012633113,-11316.60465966,0.00015,2]
[391937701,1761012633124,-170135.18076378,0.00015,2]
[391937702,1761012633135,-1004.41808677,0.00015,2]
[391937703,1761012633147,-2897.02301155,0.00015,2]
[391937704,1761012633159,-18061.30510712,0.00015,2]
[391937705,1761012633171,-4785.88571281,0.00015,2]
[391937706,1761012633181,-1250.04837795,0.00015,2]
[391937707,1761012633193,-369.152992,0.00015,2]
[391937708,1761012633204,-3476.90199974,0.00015,2]
[391937709,1761012633218,-517.56852821,0.00015,2]
[391937710,1761012633230,-1605.89447669,0.00015,2]
[391937711,1761012633241,-871.0,0.00015,2]
[391937712,1761012633252,-3631.7649521,0.00015,2]
[391937715,1761012638231,-596.25242774,0.00014599,2]
[391937716,1761012638241,-164.01,0.00014813,2]
[391937717,1761012638250,-6505.87438962,0.000149,2]
[391937718,1761012638262,-5994.25353574,0.000149,2]
[391937719,1761012638273,-1090.43886703,0.000149,2]
[391937720,1761012638283,-201.04901853,0.00014999,2]
[391937721,1761012638294,-298.95098147,0.00014999,2]
[391937722,1761012638303,-500.0,0.00014999,2]
[391937723,1761012638312,-2616.07134925,0.00015,2]
[391937724,1761012638324,-478.5122656,0.00015,2]
[391937725,1761012638335,-11000.0,0.00015,2]
[391937726,1761012638375,-500.0,0.00014999,2]
[391937727,1761012638385,-73525.42505678,0.00015,2]
[391937728,1761012638395,-29690.17272544,0.00015,2]
[391937729,1761012638405,-6284.40221779,0.00015,2]
[391937730,1761012638456,-20645.0,0.00015,2]
[391937731,1761012638469,-2798.75877319,0.00015,2]
[391937732,1761012638480,-30070.13315952,0.00015,2]
[391937733,1761012638489,-666.5712752,0.00015,2]
[391937734,1761012638498,-4528.81153675,0.00015,2]
[391937894,1761012640291,-500.0,0.00014999,2]
[391937897,1761012640301,-552.29214045,0.00015,2]
[391937899,1761012640310,-3217.7559567,0.00015,2]
[391937901,1761012640319,-151.0,0.00015,2]
[391937903,1761012640329,-150.0,0.00015033,2]
[391937905,1761012640338,-243.12,0.00015247,2]
[391937907,1761012640348,-166.66,0.00015272,2]
[391937909,1761012640358,-11431.72788996,0.000154,2]
[391937911,1761012640367,-164.01,0.00015424,2]
[391937913,1761012640377,-168.0,0.000155,2]
[391937915,1761012640386,-1000.0,0.00015521,2]
[391937917,1761012640395,-502.61385041,0.00015521,2]
[391937919,1761012640404,-156.76144982,0.00015521,2]
[391937921,1761012640413,-505.69057138,0.00015521,2]
[391937923,1761012640423,-243.12,0.00015521,2]
[391937925,1761012640431,-166.66,0.00015568,2]
[391937927,1761012640441,-301.35,0.0001565,2]
[391937929,1761012640451,-168.0,0.0001571,2]
[391937931,1761012640460,-168.0,0.00015724,2]
[391937933,1761012640470,-243.12,0.00015795,2]
[391937935,1761012640479,-250.0,0.00015827,2]
[391937937,1761012640488,-236.3438224,0.00015827,2]
[391937940,1761012640497,-1560.51233107,0.00015827,2]
[391937942,1761012640507,-1690.1069288,0.00015827,2]
[391937987,1761012640922,-809.8930712,0.00015827,2]
[391937989,1761012640932,-168.0,0.00015839,2]
[391937991,1761012640942,-120.3069288,0.0001585,2]
[391937993,1761012640953,-465.44155777,0.0001585,2]
[391937997,1761012640977,-2350.85617343,0.0001585,2]
[391937999,1761012640986,-307.61,0.00015866,2]
[391938001,1761012640995,-4245.09,0.00015883,2]
[391938003,1761012641004,-583.24,0.00015887,2]
[391938005,1761012641014,-214.36,0.00015928,2]
[391938007,1761012641023,-168.0,0.0001593,2]
[391938009,1761012641033,-701.68,0.00015931,2]
[391938011,1761012641042,-214.37,0.00015942,2]
[391938013,1761012641051,-168.0,0.00015973,2]
[391938015,1761012641060,-1000.0,0.00015974,2]
[391938017,1761012641069,-250.0,0.00016027,2]
[391938019,1761012641078,-339.7427829,0.00016027,2]
[391938021,1761012641087,-363.92537945,0.00016027,2]
[391938023,1761012641096,-255.0,0.00016031,2]
[391938025,1761012641106,-164.01,0.00016036,2]
[391938027,1761012641115,-243.137482,0.00016068,2]
[391938029,1761012641123,-168.0,0.00016073,2]
[391938031,1761012641132,-168.0,0.00016122,2]
[391938033,1761012641141,-267.45,0.00016207,2]
[391938035,1761012641150,-420.0,0.00016308,2]
[391938036,1761012641160,-1680.0,0.00016386,2]
[391938038,1761012641169,-201.80551164,0.00016438,2]
[391938040,1761012641178,-162.87,0.0001644,2]
[391938042,1761012641187,-168.0,0.00016476,2]
[391938044,1761012641197,-276.5086657,0.0001651,2]
[391938046,1761012641206,-168.0,0.00016601,2]
[391938048,1761012641215,-164.01,0.00016647,2]
[391938050,1761012641224,-307.61,0.00016748,2]
[391938052,1761012641233,-168.0,0.00016808,2]
[391938054,1761012641242,-2936.60467,0.0001685,2]
[391938056,1761012641251,-1392.0,0.000169,2]
[391938058,1761012641260,-13342.8029504,0.00016908,2]
[391938060,1761012641270,-1133.7474772,0.00016908,2]
[391938062,1761012641279,-717.9784019,0.00016908,2]
[391938064,1761012641288,-250.0,0.00016935,2]
[391938066,1761012641297,-13590.56679234,0.00017044,2]
[391938068,1761012641306,-200.0,0.00017137,2]
[391938071,1761012641317,-433.0,0.00017253,2]
[391938072,1761012641327,-164.01,0.00017258,2]
[391938074,1761012641337,-2977.1817591,0.00017333,2]
[391938077,1761012641346,-252.9732561,0.00017333,2]
[391938079,1761012641356,-160.2026358,0.00017333,2]
[391938080,1761012641366,-306.44838411,0.00017426,2]
[391938082,1761012641375,-181.18555999,0.00017426,2]
[391938084,1761012641384,-500.0,0.00017426,2]